Cogmind - Beta 11.1 @@@ ROGUE MODE // 2022.12.17 @ 15:05:10 Player: QQQQ Result: Destroyed by G-34 Mercenary with Small Laser Performance ------------- Evolutions (1) 500 Regions Visited (5) 1000 Robots Destroyed (29) 145 Value Destroyed (473) 473 Prototype IDs (2) 40 Alien Tech Used (0) 0 Bonus (308) 308 TOTAL SCORE: 2466 Bonus ------- Follower Combat Kills 108 Entered Garrisons 200 Cogmind --------- Core Integrity 0/400 Matter 268/300 Energy 100/100 System Corruption 0% Temperature Cool (6) Movement Core (100) Ox1 Location -9/Garrison Parts ------- > --- POWER (1) -------- (None) > --- PROPULSION (3) --- (None) > --- UTILITY (3) ------ Small Storage Unit Targeting Computer > --- WEAPON (2) ------- (None) > --- INVENTORY (8) ---- Cesium-ion Thruster Improved Heat Sink Medium Storage Unit Weight Redist. System Weight Redist. System Visual Processing Unit Hardened Light Armor Plating Improved Assault Rifle Peak State ------------ > --- POWER ------------ Light Ion Engine > --- PROPULSION ------- Airjet Airjet Airjet > --- UTILITY ---------- Improved Heat Sink Medium Storage Unit Targeting Computer > --- WEAPON ----------- Beam Rifle Rocket Launcher > --- INVENTORY -------- Airjet Small Storage Unit Large Battery Compact Matter Pod Weight Redist. System Visual Processing Unit Propulsion Shielding Hardened Light Armor Plating Light Assault Rifle [Rating: 20] Favorites ----------- Power Ion Engine Engine Ion Engine Propulsion Improved Aluminum Leg Leg Improved Aluminum Leg Hover Unit Airjet Flight Unit Cesium-ion Thruster Utility Medium Storage Unit Device Sensor Array Storage Medium Storage Unit Processor Targeting Computer Protection Propulsion Shielding Weapon Light Assault Rifle Energy Gun Beam Rifle Ballistic Gun Light Assault Rifle Launcher Rocket Launcher Special Melee Weapon Datajack Build | -11 -10 -10 -9 -9 -9 ------- Run | Scr Mat Min Mat Sto Gar Slots Evolved 2 | . . . 2 . . Power . | . . . . . . Propulsion 1 | . . . 1 . . Utility 1 | . . . 1 . . Weapon . | . . . . . . Parts Attached 36 | 5 10 3 17 1 . Power 4 | 1 2 . 1 . . Engine 4 | 1 2 . 1 . . Core . | . . . . . . Reactor . | . . . . . . Propulsion 13 | 2 3 . 7 1 . Treads . | . . . . . . Leg 6 | 2 3 . 1 . . Wheel . | . . . . . . Hover 3 | . . . 3 . . Flight 4 | . . . 3 1 . Utility 8 | 1 3 . 4 . . Device 3 | . 2 . 1 . . Storage 3 | 1 1 . 1 . . Processor 1 | . . . 1 . . Hackware . | . . . . . . Protection 1 | . . . 1 . . Artifact . | . . . . . . Weapon 11 | 1 2 3 5 . . Energy Gun 2 | 1 . . 1 . . Energy Cannon . | . . . . . . Ballistic Gun 6 | . 2 1 3 . . Ballistic Cannon . | . . . . . . Launcher 2 | . . 1 1 . . Special Weapon . | . . . . . . Impact Weapon . | . . . . . . Slashing Weapon . | . . . . . . Piercing Weapon . | . . . . . . Special Melee Weapon 1 | . . 1 . . . Unidentified Prototypes . | . . . . . . Parts Lost 8 | . 1 . . . 7 Power 1 | . . . . . 1 Propulsion 4 | . 1 . . . 3 Utility 1 | . . . . . 1 Weapon 2 | . . . . . 2 Highest Loss Streak 6 | . 1 . . . 6 To Critical Strikes . | . . . . . . Average Slot Usage (%) 94 | . 89 99 99 100 78 Engine 12 | . 14 14 11 11 . Leg 19 | . 27 28 8 . . Hover 4 | . . . 18 . . Flight 5 | . . . 4 33 28 Device 7 | . 7 14 5 . . Storage 12 | . 14 14 11 11 11 Processor 3 | . . . 11 11 11 Protection 2 | . . . 5 11 10 Energy Gun 4 | . 3 . 6 11 9 Ballistic Gun 16 | . 21 15 10 11 8 Launcher 4 | . . 12 4 . . Naked Turns . | . . . . . . Heaviest Build 21 | 9 18 21 21 15 15 Greatest Support 39 | 20 26 26 39 15 15 Greatest Overweight (x) 6 | 2 1 . 6 . 1 Average Overweight (x) . | . . . . . . Largest Inventory Capacity 10 | 8 10 10 10 8 8 Average Capacity 9 | 7 8 10 9 8 8 Most Carried 10 | 3 10 10 10 8 8 Average Carried 7 | 1 6 9 8 7 8 Final Capacity 10 | 8 10 10 8 8 8 Final Carried 10 | 3 10 10 8 8 8 Class Distribution -------------------- 84% | Mutant 15% | Sprinter Dominant Class ---------------- Mutant | -10/Materials Mutant | -10/Mines Mutant | -9/Materials Sprinter | -9/Storage Sprinter | -9/Garrison Resources | -11 -10 -10 -9 -9 -9 ----------- Run | Scr Mat Min Mat Sto Gar Matter Collected 696 | 234 120 185 157 . . Remotely . | . . . . . . Salvage Created 487 | . 281 132 74 . . Parts 49 | . 22 14 13 . . Haulers Intercepted 1 | . . . 1 . . Recyclers Shooed . | . . . . . . Parts Field Recycled . | . . . . . . Retrieved Matter . | . . . . . . Parts Self-Destructed . | . . . . . . Prevented . | . . . . . . Kills | -11 -10 -10 -9 -9 -9 ------- Run | Scr Mat Min Mat Sto Gar Combat Hostiles Destroyed 23 | . 9 10 4 . . Guns 15 | . 9 6 . . . AOE 8 | . . 4 4 . . Classes Destroyed 6 | . 5 . 1 . . Worker 1 | . 1 . . . . Hauler 1 | . . . 1 . . Operator 1 | . 1 . . . . Watcher 3 | . 2 . 1 . . Swarmer 18 | . 6 8 4 . . Grunt 5 | . 3 2 . . . Best Kill Streak 4 | . 3 3 4 . . Combat Bots Only 4 | . 3 3 4 . . Max Kills in Single Turn 3 | . 2 2 3 . . Gunslinging 1 | . 1 . . . . Exploded 3 | . . 2 3 . . Melee . | . . . . . . Uniques/NPCs Destroyed . | . . . . . . Combat | -11 -10 -10 -9 -9 -9 -------- Run | Scr Mat Min Mat Sto Gar Damage Taken 1781 | . 411 308 267 109 686 Core 527 | . 96 24 31 37 339 Absorbed by Shields 114 | . . . . . 114 Redirected to Shielding 51 | . . . 24 5 22 Regen/Repaired (Parts) 10 | . . . . 10 . Core Remaining (%) 76 | 100 . 52 . . . Volleys Fired 97 | . 45 24 23 5 . Largest 2 | . 2 2 2 2 . Hottest 79 | . 60 40 79 79 . Shots Fired 134 | . 71 27 26 10 . Gun 127 | . 71 22 24 10 . Cannon . | . . . . . . Launcher 7 | . . 5 2 . . Special . | . . . . . . Kinetic 79 | . 47 22 5 5 . Thermal 48 | . 24 . 19 5 . Explosive 7 | . . 5 2 . . Electromagnetic . | . . . . . . Robot Hit Streak 8 | . 6 3 8 . . Robot Miss Streak 3 | . 2 3 2 . . Penetration Max . | . . . . . . Secondary Targets 1 | . 1 . . . . Max Gunslinging Chain 1 | . 1 . . . . Shots Hit Robots 73 | . 40 15 18 . . Core Hits 47 | . 22 16 9 . . Critical Kills . | . . . . . . Critical Parts Destroyed . | . . . . . . Critical Strikes . | . . . . . . Melee Attacks . | . . . . . . Impact . | . . . . . . Slashing . | . . . . . . Piercing . | . . . . . . Sneak Attacks . | . . . . . . Combat Hostiles . | . . . . . . Follow-up Attacks . | . . . . . . Damage Inflicted 1318 | . 460 424 434 . . Guns 713 | . 365 132 216 . . Cannons . | . . . . . . Explosions 603 | . 95 290 218 . . Melee . | . . . . . . Ramming 2 | . . 2 . . . Kinetic 381 | . 224 132 25 . . Thermal 427 | . 236 . 191 . . Explosive 508 | . . 290 218 . . Electromagnetic . | . . . . . . Impact . | . . . . . . Slashing . | . . . . . . Piercing . | . . . . . . Highest Corruption . | . . . . . . Average Corruption . | . . . . . . Corruption Purged . | . . . . . . Corruption Blocked . | . . . . . . Overload Shots . | . . . . . . Overflow Damage 6 | . . 6 . . . Projectiles . | . . . . . . Explosions 6 | . . 6 . . . Melee . | . . . . . . Knockbacks . | . . . . . . Impact . | . . . . . . Kinetic . | . . . . . . Secondary . | . . . . . . Self-Inflicted Damage 124 | . 51 73 . . . Shots 3 | . 1 2 . . . Rammed . | . . . . . . Targets Rammed 1 | . . 1 . . . Kicked 1 | . . 1 . . . Crushed . | . . . . . . Highest Temperature 154 | . 20 6 154 57 . Average Temperature 44 | . 13 4 61 27 . Received Heat Transfer 413 | . 54 24 90 45 200 Siege Activations . | . . . . . . Robots Corrupted . | . . . . . . Combat Hostiles . | . . . . . . Parts Fried . | . . . . . . Impact Corruptions . | . . . . . . Robots Melted . | . . . . . . Combat Hostiles . | . . . . . . Parts Melted . | . . . . . . Heat Transferred 856 | . 375 . 481 . . Parts Sabotaged . | . . . . . . Parts Stolen . | . . . . . . Parts Stripped . | . . . . . . Power Chain Reactions . | . . . . . . Missiles Intercepted . | . . . . . . Alert | -11 -10 -10 -9 -9 -9 ------- Run | Scr Mat Min Mat Sto Gar Peak Influence 534 | . 241 230 534 421 347 Initial 277 | . . 40 89 176 277 Average 181 | . 135 122 303 265 293 Maximum Alert Level 2 | . 1 1 2 2 1 Low Security (%) 66 | 100 78 92 35 38 . Level 1 25 | . 21 7 32 50 100 Level 2 7 | . . . 31 11 . Level 3 . | . . . . . . Level 4 . | . . . . . . Level 5 . | . . . . . . High Security . | . . . . . . Max Security . | . . . . . . Squads Dispatched 6 | . 1 . 4 1 . Investigation 1 | . . . 1 . . Extermination . | . . . . . . Reinforcement 5 | . 1 . 3 1 . Assault . | . . . . . . Garrison . | . . . . . . Intercept . | . . . . . . Searches Triggered . | . . . . . . Construction Impeded . | . . . . . . Haulers Reinforced . | . . . . . . Active Scanning Responses . | . . . . . . Cargo Convoy Interrupts . | . . . . . . Stealth | -11 -10 -10 -9 -9 -9 --------- Run | Scr Mat Min Mat Sto Gar Distress Signals 3 | . . . 1 2 . Communications Jammed . | . . . . . . Distress Signals . | . . . . . . Times Spotted 92 | . 20 11 26 23 12 Peak Tracking Total 11 | . 4 3 9 11 9 Tactical Retreats 15 | . 2 . 6 5 2 Traps | -11 -10 -10 -9 -9 -9 ------- Run | Scr Mat Min Mat Sto Gar Traps Triggered 6 | . 1 . . . 5 Indirectly . | . . . . . . Trap Hack Attempts . | . . . . . . Triggered . | . . . . . . Disarmed . | . . . . . . Reprogrammed . | . . . . . . Reused . | . . . . . . Traps Extracted . | . . . . . . Installed . | . . . . . . Triggered . | . . . . . . Most Traps Carried 1 | . . 1 . . . Machines | -11 -10 -10 -9 -9 -9 ---------- Run | Scr Mat Min Mat Sto Gar Machines Disabled 3 | . 1 . 2 . . Max in Single Turn 1 | . 1 . 1 . . Machines Sabotaged . | . . . . . . Garrisons Compromised . | . . . . . . Overloaded Fab Kills . | . . . . . . Hacking | -11 -10 -10 -9 -9 -9 --------- Run | Scr Mat Min Mat Sto Gar Machines Accessed 13 | . 4 . 3 6 . Terminals 10 | . 3 . 3 4 . Fabricators . | . . . . . . Repair Stations 1 | . . . . 1 . Recycling Units 1 | . 1 . . . . Scanalyzers . | . . . . . . Garrison Access 1 | . . . . 1 . Total Hacks 33 | . 10 . 10 13 . Successful 19 | . 7 . 5 7 . Failed 14 | . 3 . 5 6 . Catastrophic 5 | . 1 . 2 2 . Database Lockouts . | . . . . . . Manual 12 | . 4 . 5 3 . Terminals 26 | . 9 . 10 7 . Fabricators . | . . . . . . Repair Stations 3 | . . . . 3 . Recycling Units 1 | . 1 . . . . Scanalyzers . | . . . . . . Garrison Access 3 | . . . . 3 . Terminal Hacks 14 | . 6 . 5 3 . Record 4 | . 1 . 2 1 . Robot Analysis 1 | . 1 . . . . Prototype ID Bank 1 | . . . 1 . . Open Door 1 | . . . . 1 . Branch Access Points 3 | . 1 . 1 1 . Alert Level 1 | . 1 . . . . Hauler Manifests 1 | . 1 . . . . Zone Layout 2 | . 1 . 1 . . Fabricator Hacks . | . . . . . . Repair Station Hacks 2 | . . . . 2 . Scan Component 1 | . . . . 1 . Repair 1 | . . . . 1 . Recycling Unit Hacks 1 | . 1 . . . . Report Inventory 1 | . 1 . . . . Scanalyzer . | . . . . . . Garrison Access Hacks 2 | . . . . 2 . Unlock Access 1 | . . . . 1 . Coupler Status 1 | . . . . 1 . Unauthorized Hacks . | . . . . . . Terminals . | . . . . . . Fabricators . | . . . . . . Repair Stations . | . . . . . . Recycling Units . | . . . . . . Scanalyzers . | . . . . . . Garrison Access . | . . . . . . Data Cores Recovered 1 | . 1 . . . . Used . | . . . . . . Hacking Detections 6 | . . . 2 4 . Full Trace Events 1 | . . . 1 . . Feedback Events . | . . . . . . Feedback Blocked . | . . . . . . Robot Schematics Acquired . | . . . . . . Robots Built . | . . . . . . Authchips . | . . . . . . Time . | . . . . . . Total Robot Build Rating . | . . . . . . Part Schematics Acquired . | . . . . . . Parts Built . | . . . . . . Authchips . | . . . . . . Time . | . . . . . . Total Part Build Rating . | . . . . . . Parts Repaired 1 | . . . . 1 . Time 38 | . . . . 38 . Parts Recycled . | . . . . . . Recycled Matter . | . . . . . . Retrieved Matter . | . . . . . . Retrieved Components . | . . . . . . Parts Scanalyzed . | . . . . . . Part Schematics Acquired . | . . . . . . Parts Damaged . | . . . . . . Bothacking | -11 -10 -10 -9 -9 -9 ------------ Run | Scr Mat Min Mat Sto Gar Used RIF Installer . | . . . . . . Robots Hacked . | . . . . . . Non-combat . | . . . . . . Combat . | . . . . . . Robot Hacks Applied . | . . . . . . Relay Couplers Released . | . . . . . . Fabnet Peak Effective % . | . . . . . . Robots Rewired . | . . . . . . Allies Hacked . | . . . . . . Hacks Repelled . | . . . . . . Allies | -11 -10 -10 -9 -9 -9 -------- Run | Scr Mat Min Mat Sto Gar Total Allies 3 | . . 3 . . . Largest Group 3 | . . 3 3 . . Highest-Rated Group 40 | . . 40 40 . . Highest-Rated Ally 16 | . . 16 16 . . Total Orders . | . . . . . . Ally Attacks 26 | . . 3 23 . . Total Damage 327 | . . 32 295 . . Kills 5 | . . . 5 . . Allies Corrupted . | . . . . . . Allies Melted . | . . . . . . Intel | -11 -10 -10 -9 -9 -9 ------- Run | Scr Mat Min Mat Sto Gar Robot Analysis Total 1 | . 1 . . . . Derelict Logs Recovered 2 | . . 2 . . . Drone Launches . | . . . . . . Drone Recoveries . | . . . . . . Exploration | -11 -10 -10 -9 -9 -9 ------------- Run | Scr Mat Min Mat Sto Gar Turns Passed 2320 | 77 818 636 490 181 118 Spaces Moved 2333 | 60 521 467 674 486 125 Core 14 | 13 . . 1 . . Treads . | . . . . . . Legs 1133 | 47 521 467 98 . . Wheels . | . . . . . . Hover 392 | . . . 392 . . Flight 794 | . . . 183 486 125 Fastest Speed 29 | 50 120 120 29 29 29 Average Speed 78 | 110 122 120 56 29 31 Slowest Speed 350 | 150 190 120 350 29 115 Overloaded Moves . | . . . . . . Propulsion Burnouts . | . . . . . . Robots Hopped 16 | . . . 5 10 1 Cave-ins Triggered . | . . . . . . Exploration Rate (%) 56 | 5 81 93 54 65 41 Regions Visited 5 Branch Regions 2 Pre-discovered Areas . | . . . . . . Known Exits Taken 3 | . 1 . 1 1 . Unknown Exits Taken 2 | 1 . 1 . . . Scrap Searched 2 | . . 2 . . . Spaces Dug . | . . . . . . Terrain Destroyed 99 | . 21 56 22 . . Melee . | . . . . . . Projectile . | . . . . . . AOE 99 | . 21 56 22 . . Terrain Rammed . | . . . . . . Walls Destroyed . | . . . . . . Machines Disabled . | . . . . . . Actions | -11 -10 -10 -9 -9 -9 --------- Run | Scr Mat Min Mat Sto Gar Total 2702 | 68 647 522 756 506 203 Wait 110 | . 42 18 15 23 12 Move 2299 | 59 520 466 663 468 123 Hop 14 | . . . 5 8 1 Pick Up 38 | 4 17 4 12 1 . Fast Attach 13 | 4 1 2 6 . . Attach 18 | 1 6 1 9 1 . Detach 5 | . 2 . 3 . . Swap 5 | . 3 . 2 . . Drop 35 | . 11 6 18 . . Fire 97 | . 45 24 23 5 . Melee . | . . . . . . Ram . | . . . . . . Kick 1 | . . 1 . . . Crush . | . . . . . . Escape Stasis 67 | . . . . . 67 Rewire . | . . . . . . Trap . | . . . . . . Miscellaneous . | . . . . . . Route ------- -11/Scrapyard -10/Materials (discovered 4 exits: *Mat x2 / *Min x2) -10/Mines (discovered 2 exits: *Mat x2) -9/Materials (discovered 4 exits: [*Mat] / *Min x2 / *Sto) -9/Storage (discovered 2 exits: Rec / Gar) -9/Garrison History --------- Turn | Location | Event 3 | -11/Scrapyard | Discovered new exit (range 15) 78 | -11/Scrapyard | Entered Materials 320 | -10/Materials | Build established: Mutant 508 | -10/Materials | Discovered new exit (range 16) 572 | -10/Materials | Identified exit to Mines 739 | -10/Materials | Discovered new exit (range 12) 896 | -10/Materials | Entered Mines 971 | -10/Mines | Received a Rocket Launcher from a helpful Derelict 1071 | -10/Mines | Learned Materials emergency access door positions 1200 | -10/Mines | Discovered new exit (range 12) 1279 | -10/Mines | Found a hidden stash of uninstalled traps 1372 | -10/Mines | Learned Materials stockpile data 1411 | -10/Mines | Assisted by bots powering up and referring to "LRC-V3" 1480 | -10/Mines | Discovered new exit (range 12) 1532 | -10/Mines | Entered Materials 1532 | -9/Materials | Accompanied by 3 allies 1532 | -9/Materials | Evolved 2 slots: Propulsion x1, Utility x1 1577 | -9/Materials | Discovered new exit (range 15) 1762 | -9/Materials | Discovered new exit (range 15) 1987 | -9/Materials | Identified exit to Mines 1987 | -9/Materials | Identified exit to Storage 2002 | -9/Materials | Discovered new exit (range 16) 2022 | -9/Materials | Entered Storage 2039 | -9/Storage | Identified exit to Recycling 2063 | -9/Storage | Repaired Cesium-ion Thruster 2203 | -9/Storage | Identified exit to Garrison 2203 | -9/Storage | Entered Garrison 2216 | -9/Garrison | Triggered checkpoint 2255 | -9/Garrison | Build established: Sprinter 2307 | -9/Garrison | Core integrity fell below 50% 2316 | -9/Garrison | Core integrity fell below 20% 2321 | -9/Garrison | Destroyed by G-34 Mercenary with Small Laser Last Messages --------------- 02294_ Field strength at 94. 02294_ Field strength at 86. 02295_ Field strength at 80. 02296_ S-10 Pest destroyed. 02296_ Field strength at 74. 02297_ Field strength at 68. 02298_ Field strength at 60. 02299_ Field strength at 54. 02300_ Field strength at 48. 02301_ Field strength at 40. 02302_ Field strength at 29. 02303_ Cesium-ion Thruster destroyed. 02303_ Field strength at 22. 02303_ Cesium-ion Thruster destroyed. 02304_ Field strength at 12. 02304_ Beam Rifle destroyed. 02305_ Field strength at 4. 02306_ Stasis field depleted. 02310_ Propulsion Shielding destroyed. 02310_ Cesium-ion Thruster destroyed. Map ----- +----------------------------------------------------+ | ?????????????????????????????????# #???????????? | | ?????????????????????????????????# ##""""######? | | ?????????????????????????????????# ## | | ?????????????????????????????????# | | ?????????????????????????????????# | | ?????????????????????????????????# ## ## #? | | ?????????????????????????????????# ## ## ## | | ?????????????????????????????????" | | ?????????????????????????????????" | | ?????????????????????????????????" | | ?????????????????????????????????" | | ?????????????????????????????????# ## ## ## | | ???????????????????????########### ## ## ## | | ???????????????????????# | | ???????????????????????# | | ???????????????????????# ## | | ???????????????????????# ############ ## ##? | | ???????????????????????# #??????????# ## #?? | | ??????????????????????## ########???####### #?? | | ???????????????????????/^^ + #???????# #?? | | ???????????????????????g ##### ##?????????# #?? | | ???????????????????????#ggg#????????????????# #?? | | ???????????????????????#^ s#????????????????# #?? | | ???????????????????????# #????????????????# ### | | ???????????????????????# #????????????????# | | ???????????????????????# @ #????????????????# | | ???????????????????????# #????????????????###### | | ???????????????????????# #?????????????????????? | | ???????????????????????# #?????????????????????? | | ???????????????????????# #?????????????????????? | | ???????????????????????# #?????????????????????? | | ???????????????????????# %#?????????????????????? | | ???????????????????????# gs#?????????????????????? | | ??????????????????????? +?????????????????????? | | ??????????????????????? #?????????????????????? | | ???????????????????????# #?????????????????????? | | ???????????????????????# #?????????????????????? | | ???????????????????????# #?????????????????????? | | ???????????????????????? ??????????????????????? | | ???????????????????????? ??????????????????????? | | ???????????????????????? ??????????????????????? | | ?????????????????????????????????????????????????? | | ?????????????????????????????????????????????????? | | ?????????????????????????????????????????????????? | | ?????????????????????????????????????????????????? | | ?????????????????????????????????????????????????? | | ?????????????????????????????????????????????????? | | ?????????????????????????????????????????????????? | | ?????????????????????????????????????????????????? | | ?????????????????????????????????????????????????? | +----------------------------------------------------+ Best States ------------- Heat Dissipation 42 Energy Generation 10 Energy Capacity 250 Matter Stores 300 Matter Capacity 300 Sight Range 16 Robot Scan Range 14 Terrain Scan Density 10 Propulsion Shielding 33 Evasion (%) 64 Targeting Accuracy 5 Item Schematics ----------------- None Robot Schematics ------------------ None Fabricated ------------ Nothing Alien Tech Used ----------------- None Achievements -------------- Cya! Challenges ------------ None Game ------ Seed GammaMicroMaul Manual? 0 Play Time 01:11:01 Cumulative 33.1 hours Start 2022.12.08 @ 15:48:55 End 2022.12.17 @ 15:05:10 Sessions 9 Manual Loads 0 Difficulty Rogue Special Mode None Game No. 21 Rogue 21 Adventurer 0 Explorer 0 Win Type - Total 0 Types 0/0/0/0/0/0/0/0/0 Lore% 33 Gallery% 30 Achievement% 29 Wizard Run 0 Options --------- ASCII 0 Keyboard 1 Movement Numpad Keybinds 0 Fullscreen 2 Font 18/TerminusBold Map View 76x50 Tactical HUD 1 Map Filters NONE Filters NONE Steam 1 RUN: f3c9d098-cfac-49b5-93e4-3f434d2c38bd